[Event "*** SCC Grand Prix: Titled Tuesday Blitz"]
[Site "Chess.com"]
[Date "2020.10.13"]
[Round "5"]
[White "JosefineHeinemann"]
[Black "Susal_De_Silva"]
[Result "0-1"]
[WhiteElo "2616"]
[BlackElo "2461"]
[TimeControl "180+1"]
[EndTime "10:55:37 PDT"]
[Termination "Susal_De_Silva won by resignation"]

1. e4 {[%clk 0:03:00.9]} 1... e5 {[%clk 0:02:59.7]} 2. Nf3 {[%clk 0:02:59.3]}
2... Nc6 {[%clk 0:03:00.1]} 3. Bb5 {[%clk 0:02:59.3]} 3... a6 {[%clk 0:03:00.3]}
4. Ba4 {[%clk 0:02:59.2]} 4... Nf6 {[%clk 0:03:00.7]} 5. O-O {[%clk 0:02:59.3]}
5... Be7 {[%clk 0:03:01]} 6. Re1 {[%clk 0:02:59.2]} 6... b5 {[%clk 0:03:01.4]}
7. Bb3 {[%clk 0:02:59.8]} 7... d6 {[%clk 0:03:01.8]} 8. c3 {[%clk 0:02:59.2]}
8... O-O {[%clk 0:03:02.2]} 9. h3 {[%clk 0:02:59.3]} 9... Na5 {[%clk 0:03:02.5]}
10. Bc2 {[%clk 0:02:59.3]} 10... c5 {[%clk 0:03:03]} 11. d4 {[%clk 0:02:59.9]}
11... Nd7 {[%clk 0:03:03.4]} 12. a4 {[%clk 0:02:57.7]} 12... b4 {[%clk
0:02:51.4]} 13. cxb4 {[%clk 0:02:46.1]} 13... cxb4 {[%clk 0:02:50.1]} 14. Bd2
{[%clk 0:02:46.5]} 14... Rb8 {[%clk 0:02:47.2]} 15. Bd3 {[%clk 0:02:43.2]} 15...
exd4 {[%clk 0:02:39.2]} 16. Nxd4 {[%clk 0:02:42.5]} 16... Bf6 {[%clk 0:02:34.5]}
17. Be3 {[%clk 0:02:42.3]} 17... Nc5 {[%clk 0:02:34]} 18. f3 {[%clk 0:02:22]}
18... Bxd4 {[%clk 0:02:14.5]} 19. Bxd4 {[%clk 0:02:20.1]} 19... Ncb3 {[%clk
0:02:14.4]} 20. Be3 {[%clk 0:02:16.2]} 20... Nxa1 {[%clk 0:02:12.3]} 21. Nd2
{[%clk 0:02:16.8]} 21... N1b3 {[%clk 0:02:01.7]} 22. Nxb3 {[%clk 0:02:15.9]}
22... Nxb3 {[%clk 0:02:02.6]} 23. Qxb3 {[%clk 0:02:16.2]} 23... Be6 {[%clk
0:02:02.7]} 24. Qd1 {[%clk 0:02:15.1]} 24... Qc7 {[%clk 0:01:58.9]} 25. Qd2
{[%clk 0:02:13.2]} 25... a5 {[%clk 0:01:53.4]} 26. Bd4 {[%clk 0:02:13]} 26... f6
{[%clk 0:01:46.6]} 27. Rc1 {[%clk 0:02:11.7]} 27... Qe7 {[%clk 0:01:41.6]} 28.
f4 {[%clk 0:02:02.7]} 28... Rfc8 {[%clk 0:01:40.1]} 29. Re1 {[%clk 0:02:02.5]}
29... Bc4 {[%clk 0:01:37.1]} 30. Bc2 {[%clk 0:02:00.3]} 30... Qc7 {[%clk
0:01:26.1]} 31. Bd1 {[%clk 0:01:57.5]} 31... Be6 {[%clk 0:01:20.1]} 32. Qf2
{[%clk 0:01:55.2]} 32... Qc4 {[%clk 0:01:06.9]} 33. Be2 {[%clk 0:01:39.9]} 33...
Qc2 {[%clk 0:01:05.5]} 34. Qg3 {[%clk 0:01:35.3]} 34... Kh8 {[%clk 0:00:56.3]}
35. Bd3 {[%clk 0:01:30.4]} 35... Qd2 {[%clk 0:00:56.3]} 36. Rf1 {[%clk
0:01:10.7]} 36... Rc1 {[%clk 0:00:52.1]} 37. Rxc1 {[%clk 0:01:10.4]} 37... Qxc1+
{[%clk 0:00:53]} 38. Kh2 {[%clk 0:01:11.2]} 38... Bc4 {[%clk 0:00:52.2]} 39. Be3
{[%clk 0:01:01.3]} 39... Qxb2 {[%clk 0:00:38.5]} 40. Bxc4 {[%clk 0:01:00.9]}
40... Qc3 {[%clk 0:00:38.7]} 41. Bd5 {[%clk 0:00:51.8]} 41... b3 {[%clk
0:00:36.7]} 42. f5 {[%clk 0:00:49.3]} 42... b2 {[%clk 0:00:28.7]} 43. Qxd6
{[%clk 0:00:47.7]} 43... b1=Q {[%clk 0:00:24]} 0-1

[Event "*** SCC Grand Prix: Titled Tuesday Blitz"]
[Site "Chess.com"]
[Date "2020.10.13"]
[Round "5"]
[White "TomiLen"]
[Black "Das_Virus_2020"]
[Result "1-0"]
[WhiteElo "2592"]
[BlackElo "2397"]
[TimeControl "180+1"]
[EndTime "10:55:37 PDT"]
[Termination "TomiLen won by resignation"]

1. d4 {[%clk 0:03:00.9]} 1... Nf6 {[%clk 0:02:58.9]} 2. c4 {[%clk 0:03:00.5]}
2... c5 {[%clk 0:02:59.4]} 3. d5 {[%clk 0:03:00.3]} 3... b5 {[%clk 0:03:00]} 4.
Qc2 {[%clk 0:03:00.1]} 4... e6 {[%clk 0:02:54.2]} 5. e4 {[%clk 0:02:58.7]} 5...
bxc4 {[%clk 0:02:52.9]} 6. Bxc4 {[%clk 0:02:58.6]} 6... exd5 {[%clk 0:02:52.9]}
7. exd5 {[%clk 0:02:59.2]} 7... d6 {[%clk 0:02:53.4]} 8. Nc3 {[%clk 0:02:59.2]}
8... Be7 {[%clk 0:02:53.7]} 9. Nge2 {[%clk 0:02:58.9]} 9... O-O {[%clk
0:02:54.2]} 10. O-O {[%clk 0:02:58.7]} 10... Nbd7 {[%clk 0:02:52.7]} 11. h3
{[%clk 0:02:55.6]} 11... Nb6 {[%clk 0:02:52.3]} 12. b3 {[%clk 0:02:51.4]} 12...
Rb8 {[%clk 0:02:40.9]} 13. Bf4 {[%clk 0:02:39.8]} 13... Nxc4 {[%clk 0:02:26]}
14. bxc4 {[%clk 0:02:39.3]} 14... Rb4 {[%clk 0:02:23.7]} 15. Nb5 {[%clk
0:02:16.1]} 15... Nxd5 {[%clk 0:01:58.9]} 16. Bd2 {[%clk 0:02:12.8]} 16... Rxb5
{[%clk 0:01:58.7]} 17. cxb5 {[%clk 0:02:11.8]} 17... Bf6 {[%clk 0:01:55.7]} 18.
Rad1 {[%clk 0:02:09.7]} 18... Be6 {[%clk 0:01:48]} 19. Nf4 {[%clk 0:02:06.2]}
19... Nc7 {[%clk 0:01:21.4]} 20. Ba5 {[%clk 0:01:59.4]} 20... Qd7 {[%clk
0:01:11.7]} 21. a4 {[%clk 0:01:58.7]} 21... Bg5 {[%clk 0:00:52.4]} 22. Bd2
{[%clk 0:01:49.7]} 22... Bf5 {[%clk 0:00:45.1]} 23. Qc1 {[%clk 0:01:42.5]} 23...
Bf6 {[%clk 0:00:44.1]} 24. Rfe1 {[%clk 0:01:37]} 24... Ne6 {[%clk 0:00:37.1]}
25. Nd5 {[%clk 0:01:31.4]} 25... Bd4 {[%clk 0:00:34.8]} 26. Bc3 {[%clk
0:01:29.3]} 26... h6 {[%clk 0:00:21.5]} 27. Bxd4 {[%clk 0:01:26.6]} 27... cxd4
{[%clk 0:00:21]} 28. Qc6 {[%clk 0:01:22.5]} 28... Qd8 {[%clk 0:00:20.9]} 29. Nb4
{[%clk 0:01:13.6]} 29... Qg5 {[%clk 0:00:16.9]} 30. Kf1 {[%clk 0:01:04.6]} 30...
Nf4 {[%clk 0:00:08.3]} 31. Qf3 {[%clk 0:01:02.8]} 31... Rc8 {[%clk 0:00:04.5]}
32. Rxd4 {[%clk 0:00:58.4]} 32... Ne6 {[%clk 0:00:02.6]} 33. Rxd6 {[%clk
0:00:55.9]} 33... Rc4 {[%clk 0:00:02.6]} 34. Rd5 {[%clk 0:00:51.2]} 34... Rxb4
{[%clk 0:00:01.8]} 35. Rxf5 {[%clk 0:00:50.7]} 35... Qe7 {[%clk 0:00:01.4]} 36.
a5 {[%clk 0:00:47.4]} 36... Rxb5 {[%clk 0:00:01.4]} 37. Rxb5 {[%clk 0:00:46.3]}
1-0

[Event "*** SCC Grand Prix: Titled Tuesday Blitz"]
[Site "Chess.com"]
[Date "2020.10.13"]
[Round "5"]
[White "salomez"]
[Black "JoliyRoger"]
[Result "1-0"]
[WhiteElo "2167"]
[BlackElo "2419"]
[TimeControl "180+1"]
[EndTime "10:55:37 PDT"]
[Termination "salomez won on time"]

1. e4 {[%clk 0:03:00.9]} 1... c6 {[%clk 0:02:59.6]} 2. d4 {[%clk 0:03:00.1]}
2... d5 {[%clk 0:03:00.5]} 3. e5 {[%clk 0:02:59.3]} 3... Bf5 {[%clk 0:03:00]} 4.
Nf3 {[%clk 0:02:59.4]} 4... e6 {[%clk 0:02:59.5]} 5. Be2 {[%clk 0:02:59.5]} 5...
Nd7 {[%clk 0:03:00.1]} 6. O-O {[%clk 0:02:58.8]} 6... Be7 {[%clk 0:03:01]} 7.
Nbd2 {[%clk 0:02:58.8]} 7... Bg6 {[%clk 0:03:01.9]} 8. Nb3 {[%clk 0:02:58.3]}
8... Nh6 {[%clk 0:03:02.8]} 9. Bxh6 {[%clk 0:02:52]} 9... gxh6 {[%clk 0:03:02]}
10. Qd2 {[%clk 0:02:51]} 10... Bf8 {[%clk 0:02:43.6]} 11. c4 {[%clk 0:02:47.2]}
11... Bg7 {[%clk 0:02:43.5]} 12. cxd5 {[%clk 0:02:40.3]} 12... cxd5 {[%clk
0:02:35.2]} 13. g3 {[%clk 0:02:32.6]} 13... O-O {[%clk 0:02:34]} 14. Rac1 {[%clk
0:02:21.5]} 14... Qb6 {[%clk 0:02:06.6]} 15. Nc5 {[%clk 0:02:11.1]} 15... Rfd8
{[%clk 0:02:01.7]} 16. Na4 {[%clk 0:01:51.8]} 16... Qc6 {[%clk 0:01:46.1]} 17.
Rxc6 {[%clk 0:01:49.1]} 17... bxc6 {[%clk 0:01:47]} 18. Rc1 {[%clk 0:01:49.2]}
18... Rdc8 {[%clk 0:01:46.9]} 19. Ba6 {[%clk 0:01:48]} 19... Rc7 {[%clk
0:01:47.2]} 20. Qa5 {[%clk 0:01:46.9]} 20... Nb6 {[%clk 0:01:45.7]} 21. Nxb6
{[%clk 0:01:43.6]} 21... axb6 {[%clk 0:01:46.3]} 22. Qxb6 {[%clk 0:01:43.3]}
22... Rca7 {[%clk 0:01:46.7]} 23. Rxc6 {[%clk 0:01:31.5]} 23... Bf8 {[%clk
0:01:41.4]} 24. Bb7 {[%clk 0:01:13.8]} 24... Be4 {[%clk 0:01:38.2]} 25. Bxa8
{[%clk 0:01:10.7]} 25... Rxa2 {[%clk 0:01:38.6]} 26. Kg2 {[%clk 0:00:36.3]}
26... Rxa8 {[%clk 0:01:35.1]} 27. Qb7 {[%clk 0:00:34.8]} 27... Ra1 {[%clk
0:01:33.1]} 28. Rc8 {[%clk 0:00:33.9]} 28... Kg7 {[%clk 0:01:32.9]} 29. Qb8
{[%clk 0:00:31.9]} 1-0

[Event "*** SCC Grand Prix: Titled Tuesday Blitz"]
[Site "Chess.com"]
[Date "2020.10.13"]
[Round "5"]
[White "ClydeHillKid"]
[Black "WuinaterJr"]
[Result "0-1"]
[WhiteElo "2319"]
[BlackElo "2532"]
[TimeControl "180+1"]
[EndTime "10:55:42 PDT"]
[Termination "WuinaterJr won on time"]

1. e4 {[%clk 0:03:00.9]} 1... c5 {[%clk 0:02:59.9]} 2. Nf3 {[%clk 0:03:00.7]}
2... d6 {[%clk 0:03:00.5]} 3. d4 {[%clk 0:02:59.8]} 3... cxd4 {[%clk 0:03:01.4]}
4. Nxd4 {[%clk 0:03:00.4]} 4... Nf6 {[%clk 0:03:02]} 5. Nc3 {[%clk 0:03:00.2]}
5... a6 {[%clk 0:03:02.6]} 6. Bd3 {[%clk 0:02:59.2]} 6... e5 {[%clk 0:03:02.3]}
7. Nde2 {[%clk 0:02:58.5]} 7... Be7 {[%clk 0:02:57.3]} 8. O-O {[%clk 0:02:58.2]}
8... O-O {[%clk 0:02:56.8]} 9. Ng3 {[%clk 0:02:56.5]} 9... b5 {[%clk 0:02:56.5]}
10. h3 {[%clk 0:02:42.4]} 10... Be6 {[%clk 0:02:47.8]} 11. Nd5 {[%clk
0:02:40.9]} 11... Bxd5 {[%clk 0:02:45]} 12. exd5 {[%clk 0:02:41.8]} 12... g6
{[%clk 0:02:35]} 13. c4 {[%clk 0:02:37.6]} 13... bxc4 {[%clk 0:02:33.1]} 14.
Bxc4 {[%clk 0:02:38.5]} 14... Nbd7 {[%clk 0:02:33.5]} 15. Be3 {[%clk 0:02:33.3]}
15... Nb6 {[%clk 0:02:31.1]} 16. b3 {[%clk 0:02:31.7]} 16... Nxc4 {[%clk
0:02:28.1]} 17. bxc4 {[%clk 0:02:32.6]} 17... Qa5 {[%clk 0:02:19.5]} 18. Qd3
{[%clk 0:02:29]} 18... Rab8 {[%clk 0:02:10.2]} 19. f4 {[%clk 0:01:41.8]} 19...
Nd7 {[%clk 0:02:04.6]} 20. f5 {[%clk 0:01:29]} 20... Rb2 {[%clk 0:01:49.8]} 21.
Ne4 {[%clk 0:01:23.8]} 21... Rfb8 {[%clk 0:01:37.4]} 22. Rf3 {[%clk 0:00:52.6]}
22... Rxa2 {[%clk 0:01:33]} 23. Rxa2 {[%clk 0:00:41.9]} 23... Qxa2 {[%clk
0:01:33.9]} 24. Rf2 {[%clk 0:00:38.6]} 24... Qb1+ {[%clk 0:01:33.7]} 25. Qxb1
{[%clk 0:00:36.1]} 25... Rxb1+ {[%clk 0:01:34.6]} 26. Kh2 {[%clk 0:00:35.9]}
26... Rb4 {[%clk 0:01:34]} 27. fxg6 {[%clk 0:00:28.7]} 27... hxg6 {[%clk
0:01:32.2]} 28. Rc2 {[%clk 0:00:27.6]} 28... f5 {[%clk 0:01:25.8]} 29. Bg5
{[%clk 0:00:22.1]} 29... Kf7 {[%clk 0:01:08.7]} 30. Bxe7 {[%clk 0:00:05]} 30...
Kxe7 {[%clk 0:01:09.6]} 31. Ng5 {[%clk 0:00:05]} 31... Nb6 {[%clk 0:01:07.2]}
32. c5 {[%clk 0:00:03.8]} 32... Nxd5 {[%clk 0:01:04.3]} 33. c6 {[%clk
0:00:04.3]} 33... Nc7 {[%clk 0:01:03.3]} 34. g4 {[%clk 0:00:04.2]} 34... fxg4
{[%clk 0:01:01.6]} 35. hxg4 {[%clk 0:00:05.1]} 35... Rxg4 {[%clk 0:01:01.8]} 36.
Nf3 {[%clk 0:00:05.8]} 36... a5 {[%clk 0:00:59.3]} 37. Kh3 {[%clk 0:00:06.1]}
37... Rf4 {[%clk 0:00:58.5]} 38. Kg3 {[%clk 0:00:06.7]} 38... a4 {[%clk
0:00:57.8]} 39. Nd2 {[%clk 0:00:06]} 39... a3 {[%clk 0:00:49.6]} 40. Nb3 {[%clk
0:00:06.1]} 40... Ra4 {[%clk 0:00:46.4]} 41. Ra2 {[%clk 0:00:03.1]} 41... Ra6
{[%clk 0:00:44.3]} 0-1

[Event "*** SCC Grand Prix: Titled Tuesday Blitz"]
[Site "Chess.com"]
[Date "2020.10.13"]
[Round "5"]
[White "MariaFominykh"]
[Black "GameOverBro"]
[Result "0-1"]
[WhiteElo "2312"]
[BlackElo "2531"]
[TimeControl "180+1"]
[EndTime "10:55:42 PDT"]
[Termination "GameOverBro won on time"]

1. Nf3 {[%clk 0:03:00.9]} 1... d6 {[%clk 0:02:53.1]} 2. d4 {[%clk 0:02:59.3]}
2... Nf6 {[%clk 0:02:52.1]} 3. c4 {[%clk 0:02:59]} 3... Nbd7 {[%clk 0:02:52.4]}
4. Nc3 {[%clk 0:02:59.1]} 4... e5 {[%clk 0:02:52.9]} 5. e4 {[%clk 0:02:55.7]}
5... c6 {[%clk 0:02:52.5]} 6. h3 {[%clk 0:02:54.9]} 6... Be7 {[%clk 0:02:52.9]}
7. Be3 {[%clk 0:02:51.2]} 7... O-O {[%clk 0:02:52.9]} 8. Be2 {[%clk 0:02:48.4]}
8... a5 {[%clk 0:02:53.3]} 9. O-O {[%clk 0:02:44.6]} 9... a4 {[%clk 0:02:53.6]}
10. Qc2 {[%clk 0:02:43.2]} 10... Qa5 {[%clk 0:02:52.2]} 11. d5 {[%clk
0:02:41.5]} 11... cxd5 {[%clk 0:02:47.1]} 12. cxd5 {[%clk 0:02:40.5]} 12... Nc5
{[%clk 0:02:47.1]} 13. Nd2 {[%clk 0:02:37.8]} 13... Bd7 {[%clk 0:02:46.1]} 14.
Nc4 {[%clk 0:02:14.2]} 14... Qc7 {[%clk 0:02:41.9]} 15. Bxc5 {[%clk 0:02:05.9]}
15... Qxc5 {[%clk 0:02:40.1]} 16. a3 {[%clk 0:01:55.9]} 16... Rfc8 {[%clk
0:02:28.3]} 17. Ne3 {[%clk 0:01:46.6]} 17... b5 {[%clk 0:02:20.8]} 18. Qd3
{[%clk 0:01:35.7]} 18... b4 {[%clk 0:02:19.8]} 19. axb4 {[%clk 0:01:26.2]} 19...
Qxb4 {[%clk 0:02:20.7]} 20. Rfb1 {[%clk 0:01:20.7]} 20... Bd8 {[%clk 0:02:17.7]}
21. Nc2 {[%clk 0:01:01.1]} 21... Qb7 {[%clk 0:02:04]} 22. Na3 {[%clk 0:00:56.9]}
22... Bb6 {[%clk 0:01:57.5]} 23. Nab5 {[%clk 0:00:47.5]} 23... Bc5 {[%clk
0:01:54.9]} 24. Kf1 {[%clk 0:00:36.5]} 24... Rcb8 {[%clk 0:01:46.9]} 25. Na3
{[%clk 0:00:34.4]} 25... Qa7 {[%clk 0:01:37.6]} 26. Qf3 {[%clk 0:00:28.8]} 26...
Rb3 {[%clk 0:01:34.2]} 27. Bd1 {[%clk 0:00:25.6]} 27... Rb4 {[%clk 0:01:33.5]}
28. Bc2 {[%clk 0:00:23.8]} 28... Rab8 {[%clk 0:01:32.1]} 29. Nd1 {[%clk
0:00:19]} 29... Bd4 {[%clk 0:01:27.7]} 30. Ra2 {[%clk 0:00:17.9]} 30... h6
{[%clk 0:01:17.9]} 31. Qe2 {[%clk 0:00:17.7]} 31... Bc8 {[%clk 0:01:16.6]} 32.
Bd3 {[%clk 0:00:17.6]} 32... Rb3 {[%clk 0:01:13.7]} 33. Bc4 {[%clk 0:00:16.9]}
33... R3b4 {[%clk 0:01:08.9]} 34. Nc2 {[%clk 0:00:16.2]} 34... Rxc4 {[%clk
0:01:07.3]} 35. Kg1 {[%clk 0:00:06.6]} 35... Ba6 {[%clk 0:00:58.6]} 36. Qd2
{[%clk 0:00:04.5]} 36... Rbc8 {[%clk 0:00:56.2]} 37. Nce3 {[%clk 0:00:02.9]}
37... Bxe3 {[%clk 0:00:54.3]} 38. Nxe3 {[%clk 0:00:02.3]} 38... Nxe4 {[%clk
0:00:52.5]} 39. Qa5 {[%clk 0:00:01.1]} 39... Rc1+ {[%clk 0:00:52]} 0-1

[Event "*** SCC Grand Prix: Titled Tuesday Blitz"]
[Site "Chess.com"]
[Date "2020.10.13"]
[Round "5"]
[White "FloMasterAAK"]
[Black "baki83"]
[Result "0-1"]
[WhiteElo "2546"]
[BlackElo "2753"]
[TimeControl "180+1"]
[EndTime "10:55:44 PDT"]
[Termination "baki83 won on time"]

1. e4 {[%clk 0:02:57.9]} 1... e5 {[%clk 0:02:59.1]} 2. Nf3 {[%clk 0:02:57]} 2...
Nc6 {[%clk 0:02:51.3]} 3. Bc4 {[%clk 0:02:52.7]} 3... Nf6 {[%clk 0:02:50.5]} 4.
Ng5 {[%clk 0:02:49.8]} 4... d5 {[%clk 0:02:50.4]} 5. exd5 {[%clk 0:02:50.7]}
5... b5 {[%clk 0:02:50.2]} 6. Bb3 {[%clk 0:02:12.1]} 6... Nd4 {[%clk 0:02:49.4]}
7. O-O {[%clk 0:02:10.2]} 7... Nxb3 {[%clk 0:02:30.9]} 8. axb3 {[%clk
0:02:10.2]} 8... Qxd5 {[%clk 0:02:31.4]} 9. Nc3 {[%clk 0:02:07.8]} 9... Qc6
{[%clk 0:02:28.5]} 10. d4 {[%clk 0:02:04.6]} 10... Bb7 {[%clk 0:02:23.5]} 11.
Nf3 {[%clk 0:01:38.5]} 11... O-O-O {[%clk 0:02:22.8]} 12. d5 {[%clk 0:01:23.2]}
12... Nxd5 {[%clk 0:02:19.4]} 13. Nxe5 {[%clk 0:01:22.2]} 13... Qe6 {[%clk
0:02:13.8]} 14. Nd3 {[%clk 0:00:56.4]} 14... a6 {[%clk 0:01:55.8]} 15. Nxd5
{[%clk 0:00:41.6]} 15... Qxd5 {[%clk 0:01:53.3]} 16. Qg4+ {[%clk 0:00:40.2]}
16... f5 {[%clk 0:01:52.7]} 17. Qh3 {[%clk 0:00:40.6]} 17... Bd6 {[%clk
0:01:42.1]} 18. Bg5 {[%clk 0:00:37.3]} 18... Rde8 {[%clk 0:01:39.6]} 19. Rad1
{[%clk 0:00:25.1]} 19... Kb8 {[%clk 0:01:36.4]} 20. Bf4 {[%clk 0:00:23.6]} 20...
Bxf4 {[%clk 0:01:33.3]} 21. Nxf4 {[%clk 0:00:23.1]} 21... Qc6 {[%clk 0:01:32.1]}
22. c3 {[%clk 0:00:13.9]} 22... g5 {[%clk 0:01:31.3]} 23. Nd3 {[%clk 0:00:10.6]}
23... g4 {[%clk 0:01:23.9]} 24. Qg3 {[%clk 0:00:10.7]} 24... h5 {[%clk
0:01:23.9]} 25. Nb4 {[%clk 0:00:10.6]} 25... Qe4 {[%clk 0:01:24]} 26. Rd4 {[%clk
0:00:10.5]} 26... Qe5 {[%clk 0:01:00.4]} 27. Qd3 {[%clk 0:00:10.2]} 27... h4
{[%clk 0:00:57.2]} 28. c4 {[%clk 0:00:08]} 28... h3 {[%clk 0:00:47.1]} 29. g3
{[%clk 0:00:06.6]} 29... c5 {[%clk 0:00:45.8]} 30. cxb5 {[%clk 0:00:05.1]} 30...
Qxd4 {[%clk 0:00:43.6]} 31. Qxd4 {[%clk 0:00:03.2]} 31... cxd4 {[%clk
0:00:43.8]} 32. bxa6 {[%clk 0:00:03.6]} 32... Bf3 {[%clk 0:00:43.6]} 33. Ra1
{[%clk 0:00:04.5]} 33... Ka7 {[%clk 0:00:42.3]} 34. Nc2 {[%clk 0:00:03.6]} 34...
Re4 {[%clk 0:00:41.5]} 35. Nxd4 {[%clk 0:00:04.1]} 35... Rxd4 {[%clk 0:00:41.1]}
0-1

[Event "*** SCC Grand Prix: Titled Tuesday Blitz"]
[Site "Chess.com"]
[Date "2020.10.13"]
[Round "5"]
[White "Misticpikachu"]
[Black "canary2016"]
[Result "1-0"]
[WhiteElo "2306"]
[BlackElo "1963"]
[TimeControl "180+1"]
[EndTime "10:55:44 PDT"]
[Termination "Misticpikachu won by checkmate"]

1. c4 {[%clk 0:03:00.9]} 1... c6 {[%clk 0:02:59.3]} 2. Nf3 {[%clk 0:02:55.8]}
2... d5 {[%clk 0:02:58.6]} 3. e3 {[%clk 0:02:56.2]} 3... Nf6 {[%clk 0:02:55.6]}
4. Nc3 {[%clk 0:02:56.5]} 4... e6 {[%clk 0:02:53.8]} 5. b3 {[%clk 0:02:56.8]}
5... Be7 {[%clk 0:02:51.6]} 6. Bb2 {[%clk 0:02:56.1]} 6... O-O {[%clk
0:02:51.4]} 7. Qc2 {[%clk 0:02:51.8]} 7... Nbd7 {[%clk 0:02:47.7]} 8. Be2 {[%clk
0:02:47]} 8... e5 {[%clk 0:02:42.3]} 9. cxd5 {[%clk 0:02:44.7]} 9... cxd5 {[%clk
0:02:41.6]} 10. O-O {[%clk 0:02:45.1]} 10... e4 {[%clk 0:02:38.6]} 11. Nd4
{[%clk 0:02:44.5]} 11... Nc5 {[%clk 0:02:33.8]} 12. d3 {[%clk 0:02:34.7]} 12...
exd3 {[%clk 0:02:32.7]} 13. Bxd3 {[%clk 0:02:35.6]} 13... Nxd3 {[%clk
0:02:28.3]} 14. Qxd3 {[%clk 0:02:36.5]} 14... Be6 {[%clk 0:02:26.6]} 15. Rac1
{[%clk 0:02:35.6]} 15... Rc8 {[%clk 0:02:25.9]} 16. Nce2 {[%clk 0:02:25.8]}
16... Ne4 {[%clk 0:02:21.4]} 17. Ng3 {[%clk 0:02:22.6]} 17... Nxg3 {[%clk
0:02:17]} 18. hxg3 {[%clk 0:02:23.5]} 18... Bf6 {[%clk 0:02:16.4]} 19. Rxc8
{[%clk 0:02:20.7]} 19... Qxc8 {[%clk 0:02:14.4]} 20. Rc1 {[%clk 0:02:21.2]}
20... Qd7 {[%clk 0:02:11.1]} 21. Nxe6 {[%clk 0:02:08]} 21... fxe6 {[%clk
0:02:10.1]} 22. Bxf6 {[%clk 0:02:07.5]} 22... Rxf6 {[%clk 0:02:08.7]} 23. Qd4
{[%clk 0:02:06.4]} 23... b6 {[%clk 0:02:00]} 24. Qe5 {[%clk 0:01:56.3]} 24...
Rf5 {[%clk 0:01:45.2]} 25. Rc7 {[%clk 0:01:31.9]} 25... Rxe5 {[%clk 0:01:30.4]}
26. Rxd7 {[%clk 0:01:32.1]} 26... Re4 {[%clk 0:01:11.4]} 27. Rxa7 {[%clk
0:01:31.4]} 27... Rb4 {[%clk 0:01:10.9]} 28. Kf1 {[%clk 0:01:30.2]} 28... h6
{[%clk 0:01:08]} 29. Ke2 {[%clk 0:01:29.8]} 29... Kh7 {[%clk 0:01:07.9]} 30. Ra6
{[%clk 0:01:28.5]} 30... Kg6 {[%clk 0:01:03.3]} 31. Kd3 {[%clk 0:01:28.8]} 31...
e5 {[%clk 0:00:47.7]} 32. Kc3 {[%clk 0:01:25.3]} 32... Rb5 {[%clk 0:00:47.9]}
33. a4 {[%clk 0:01:24.4]} 33... Rc5+ {[%clk 0:00:46.3]} 34. Kb4 {[%clk
0:01:24.7]} 34... Rc2 {[%clk 0:00:44.7]} 35. Rxb6+ {[%clk 0:01:24.6]} 35... Kf5
{[%clk 0:00:44]} 36. a5 {[%clk 0:01:23.3]} 36... Rxf2 {[%clk 0:00:42.9]} 37. a6
{[%clk 0:01:23.3]} 37... Rxg2 {[%clk 0:00:42.8]} 38. Rb5 {[%clk 0:01:23.7]}
38... Rc2 {[%clk 0:00:22.6]} 39. a7 {[%clk 0:01:23]} 39... Rc8 {[%clk
0:00:19.3]} 40. Rb8 {[%clk 0:01:23.3]} 40... Rc2 {[%clk 0:00:12.1]} 41. a8=Q
{[%clk 0:01:22.3]} 41... Re2 {[%clk 0:00:11.2]} 42. Qxd5 {[%clk 0:01:20.9]}
42... Rxe3 {[%clk 0:00:09.5]} 43. Rf8+ {[%clk 0:01:21.2]} 43... Kg6 {[%clk
0:00:08.4]} 44. Qe6+ {[%clk 0:01:19.5]} 44... Kh7 {[%clk 0:00:07.3]} 45. Rf5
{[%clk 0:01:17.8]} 45... Re4+ {[%clk 0:00:06.4]} 46. Ka3 {[%clk 0:01:17.5]}
46... Rg4 {[%clk 0:00:04.6]} 47. Rxe5 {[%clk 0:01:15.8]} 47... Rg6 {[%clk
0:00:04.6]} 48. Qxg6+ {[%clk 0:01:14.7]} 48... Kxg6 {[%clk 0:00:04.7]} 49. b4
{[%clk 0:01:15.2]} 49... Kf6 {[%clk 0:00:05.1]} 50. Re1 {[%clk 0:01:15.4]} 50...
Kg5 {[%clk 0:00:04.6]} 51. b5 {[%clk 0:01:16.3]} 51... Kg4 {[%clk 0:00:04.5]}
52. b6 {[%clk 0:01:17.2]} 52... Kxg3 {[%clk 0:00:04.9]} 53. b7 {[%clk
0:01:18.1]} 53... g5 {[%clk 0:00:04.6]} 54. b8=Q+ {[%clk 0:01:17.9]} 54... Kh4
{[%clk 0:00:04.7]} 55. Qh2+ {[%clk 0:01:17.6]} 55... Kg4 {[%clk 0:00:04.9]} 56.
Qf2 {[%clk 0:01:17.1]} 56... h5 {[%clk 0:00:04.5]} 57. Rg1+ {[%clk 0:01:16.6]}
57... Kh3 {[%clk 0:00:02.9]} 58. Qg3# {[%clk 0:01:17]} 1-0

[Event "*** SCC Grand Prix: Titled Tuesday Blitz"]
[Site "Chess.com"]
[Date "2020.10.13"]
[Round "5"]
[White "Sankalp_Gupta2003"]
[Black "AIROPITO7"]
[Result "1/2-1/2"]
[WhiteElo "2731"]
[BlackElo "2555"]
[TimeControl "180+1"]
[EndTime "10:55:45 PDT"]
[Termination "Game drawn by repetition"]

1. e4 {[%clk 0:03:00.9]} 1... e5 {[%clk 0:02:42.6]} 2. Nf3 {[%clk 0:03:00.1]}
2... Nc6 {[%clk 0:02:41.2]} 3. Bb5 {[%clk 0:02:58.5]} 3... a6 {[%clk 0:02:40.7]}
4. Ba4 {[%clk 0:02:58.7]} 4... Nge7 {[%clk 0:02:40.9]} 5. c3 {[%clk 0:02:56.8]}
5... g6 {[%clk 0:02:40.3]} 6. d4 {[%clk 0:02:56.8]} 6... exd4 {[%clk 0:02:40.2]}
7. cxd4 {[%clk 0:02:55]} 7... b5 {[%clk 0:02:40.5]} 8. Bb3 {[%clk 0:02:54]} 8...
Bg7 {[%clk 0:02:39.3]} 9. O-O {[%clk 0:02:54.4]} 9... O-O {[%clk 0:02:35.2]} 10.
Nc3 {[%clk 0:02:51.9]} 10... d6 {[%clk 0:02:34]} 11. h3 {[%clk 0:02:50.3]} 11...
Na5 {[%clk 0:02:32.4]} 12. Bc2 {[%clk 0:02:47.6]} 12... c5 {[%clk 0:02:32.4]}
13. Bg5 {[%clk 0:02:23]} 13... h6 {[%clk 0:02:23.3]} 14. Bh4 {[%clk 0:02:21.5]}
14... g5 {[%clk 0:02:12.4]} 15. Bg3 {[%clk 0:02:17.4]} 15... Nac6 {[%clk
0:02:08.5]} 16. dxc5 {[%clk 0:02:04.7]} 16... dxc5 {[%clk 0:02:09.4]} 17. e5
{[%clk 0:01:52.9]} 17... Bf5 {[%clk 0:02:04.1]} 18. Ne4 {[%clk 0:01:51.8]} 18...
Nb4 {[%clk 0:01:48.1]} 19. Bb1 {[%clk 0:01:39.1]} 19... Qxd1 {[%clk 0:01:31.8]}
20. Rxd1 {[%clk 0:01:40]} 20... Rad8 {[%clk 0:01:30.9]} 21. Rc1 {[%clk
0:01:25.1]} 21... c4 {[%clk 0:01:25.2]} 22. Nf6+ {[%clk 0:01:23.8]} 22... Kh8
{[%clk 0:01:20.1]} 23. a4 {[%clk 0:01:19.2]} 23... Bxb1 {[%clk 0:01:06.3]} 24.
Raxb1 {[%clk 0:01:20.1]} 24... Nf5 {[%clk 0:00:57.3]} 25. Bh2 {[%clk 0:01:17.3]}
25... Nd4 {[%clk 0:00:53.6]} 26. Nxd4 {[%clk 0:01:14.1]} 26... Rxd4 {[%clk
0:00:54.5]} 27. axb5 {[%clk 0:01:14.5]} 27... axb5 {[%clk 0:00:54]} 28. b3
{[%clk 0:01:10.7]} 28... Na2 {[%clk 0:00:27.9]} 29. Rc2 {[%clk 0:00:41.9]} 29...
Nb4 {[%clk 0:00:19.6]} 30. Rcc1 {[%clk 0:00:27.7]} 30... Na2 {[%clk 0:00:18.5]}
31. Rc2 {[%clk 0:00:27.3]} 31... Nb4 {[%clk 0:00:11.8]} 32. Rc3 {[%clk
0:00:21.2]} 32... Na2 {[%clk 0:00:10.9]} 33. Rc2 {[%clk 0:00:19.3]} 1/2-1/2